bitfinex-derivatives/quotes_ETHF0:USTF0_20240927
["timestamp","ask_amount","ask_price","bid_price","bid_amount"]
[1727474706296,0.3681,2694.9,2694.7,4.1769326]
[1727474706489,0.3681,2694.9,2694.7,4.5479226]
[1727474707490,0.3681,2694.9,2694.6,1.7545326]
[1727474707689,3.94688,2694.9,2694.6,0.7638]
[1727474707896,0.3681,2694.9,2694.6,0.3928]
[1727474708188,0.3681,2694.9,2694.7,0.371]
[1727474708590,0.3681,2694.9,2694.6,0.3928]
[1727474708591,0.73908,2694.9,2694.6,0.76381]
[1727474708792,0.37099,2694.8,2694.6,0.76381]
[1727474709586,3.94688,2694.9,2694.6,0.76381]
[1727474711093,3.94688,2694.9,2694.7,0.371]
[1727474711296,0.73908,2694.9,2694.7,0.371]
[1727474711496,3.94688,2694.9,2694.7,0.371]
[1727474712588,0.3681,2694.9,2694.7,0.371]
[1727474715097,3.5759,2694.9,2694.7,0.371]
[1727474715502,3.94688,2694.9,2694.6,0.76381]
[1727474715992,3.94688,2694.9,2694.7,0.371]
[1727474717097,0.73908,2694.9,2694.7,0.371]
[1727474719395,0.73908,2694.9,2694.6,0.3928]
[1727474719396,0.3681,2694.9,2694.6,0.3928]
[1727474719597,0.3681,2694.9,2694.6,0.76381]
[1727474719598,0.37099,2694.8,2694.6,0.76381]
[1727474719805,0.73908,2694.9,2694.7,0.371]
[1727474719999,0.37099,2694.8,2694.7,0.371]
[1727474721809,0.37099,2694.8,2694.6,0.3928]
[1727474722010,0.37099,2694.8,2694.6,0.76381]
[1727474722309,0.37099,2694.8,2694.7,0.371]
[1727474722700,0.3681,2694.9,2694.7,0.371]
[1727474723911,0.37099,2694.8,2694.6,0.76381]
[1727474725310,0.371,2694.7,2694.6,0.76381]
[1727474726104,0.371,2694.7,2694.6,0.3928]
[1727474727207,0.37102,2694.6,2694.4,0.76363]
[1727474727403,1.15622,2694.6,2694.4,1.14873]
[1727474727597,0.37103,2694.5,2694.4,1.14873]
[1727474727805,1.15622,2694.6,2694.4,1.14873]
[1727474728405,1.15622,2694.6,2694.5,0.37103]
[1727474729506,0.37104,2694.4,2694.3,0.37105]
[1727474729811,0.7852,2694.6,2694.3,0.37105]
[1727474729812,1.71104,2694.5,2694.3,0.37105]
[1727474730010,2.08964,2694.5,2694.3,0.37105]
[1727474730319,0.37104,2694.4,2694.3,0.37105]
[1727474730515,0.37106,2694.3,2694.2,0.3911]
[1727474730712,4.91886,2694.3,2694.1,0.37108]
[1727474731012,0.37108,2694.1,2694.0,0.37109]
[1727474731209,1.11928,2694.2,2694.0,0.37109]
[1727474733405,0.7482,2694.2,2693.9,0.803]
[1727474733619,1.11928,2694.2,2694.0,0.37109]
[1727474734415,1.11927,2694.2,2694.0,0.37109]
[1727474735819,0.7482,2694.2,2693.9,0.803]
[1727474736511,1.11928,2694.2,2694.0,0.37109]
[1727474743125,1.11927,2694.2,2694.0,0.37109]
[1727474743320,0.7482,2694.2,2694.0,0.37109]
[1727474743721,1.11927,2694.2,2694.0,0.37109]
[1727474744615,0.7482,2694.2,2693.9,0.803]
[1727474744815,1.11928,2694.2,2694.0,0.37109]
[1727474746323,1.11928,2694.2,2693.9,0.803]
[1727474746626,1.11928,2694.2,2694.0,0.37109]
[1727474746819,1.34,2694.1,2693.9,0.4021]
[1727474747122,2.10428,2694.1,2693.9,0.7732]
[1727474747717,2.10428,2694.1,2694.0,0.3711]
[1727474748024,2.10428,2694.1,2693.9,0.7732]
[1727474748225,2.10428,2694.1,2694.0,0.3711]
[1727474748925,2.10428,2694.1,2693.9,0.7732]
[1727474752125,0.3711,2694.0,2693.9,0.7732]
[1727474754029,0.3711,2694.0,2693.9,0.4021]
[1727474754425,0.37112,2693.8,2693.6,1.34588535]
[1727474754726,0.37112,2693.8,2693.5,1.36478535]
[1727474754727,0.37115,2693.6,2693.5,1.36478535]
[1727474754931,1.71115,2693.6,2693.5,0.3953]
[1727474755123,1.34,2693.6,2693.5,0.76647]
[1727474755426,1.71115,2693.6,2693.5,0.3953]
[1727474755733,1.34,2693.6,2693.5,0.3953]
[1727474757127,1.34,2693.6,2693.5,0.76647]
[1727474758434,1.162,2693.7,2693.5,0.3953]
[1727474758732,1.162,2693.7,2693.5,0.76645]
[1727474759527,1.53314,2693.7,2693.5,0.76645]
[1727474760628,1.162,2693.7,2693.6,0.37115]
[1727474760827,1.53314,2693.7,2693.5,0.76646]
[1727474762735,1.53314,2693.7,2693.5,0.3953]
[1727474762937,1.53314,2693.7,2693.5,0.76646]
[1727474763533,0.7882,2693.7,2693.6,0.37115]
[1727474763833,0.4022,2693.7,2693.6,0.37115]
[1727474764740,0.37114,2693.8,2693.6,0.37115]
[1727474765342,0.76532,2693.9,2693.7,0.37113]
[1727474765525,0.76532,2693.9,2693.8,0.3848]
[1727474766532,0.3942,2693.9,2693.8,0.75592]
[1727474766838,0.76531,2693.9,2693.8,0.3848]
[1727474767635,0.76531,2693.9,2693.8,0.75592]
[1727474767934,0.76531,2693.9,2693.8,0.3848]
[1727474768327,0.37112,2693.8,2693.7,0.3982]
[1727474768636,0.37115,2693.6,2693.5,0.396]
[1727474769835,0.37115,2693.6,2693.5,0.76717]
[1727474771934,0.37115,2693.6,2693.5,0.396]
[1727474772438,0.37117,2693.5,2693.4,0.3892]
[1727474772641,1.12257,2693.5,2693.4,0.3892]
[1727474772947,0.37118,2693.4,2693.3,0.386]
[1727474776442,0.37119,2693.3,2693.1,0.381]
[1727474776634,0.37119,2693.3,2693.2,0.3776]
[1727474777033,1.33971862,2693.3,2693.2,0.3776]
[1727474777243,0.37119,2693.3,2693.2,0.3776]
[1727474777840,1.33971862,2693.4,2693.2,0.74881]
[1727474778042,0.37119,2693.3,2693.2,0.74881]
[1727474778432,0.37119,2693.3,2693.2,0.3776]
[1727474780842,0.37121,2693.2,2693.1,0.381]
[1727474781043,0.74151,2693.2,2693.1,0.381]
[1727474782456,1.14091,2693.2,2693.1,0.381]
[1727474782643,1.14091,2693.2,2693.1,0.75222]
[1727474783046,0.7697,2693.2,2693.1,0.75222]
[1727474783252,1.14091,2693.2,2693.1,0.75222]
[1727474783454,0.7697,2693.2,2693.1,0.75222]
[1727474785745,0.37122,2693.1,2693.0,0.77153]
[1727474785946,0.74382,2693.1,2693.0,0.77153]
[1727474786548,0.74382,2693.1,2693.0,0.4003]
[1727474787051,2.08382,2693.1,2693.0,0.4003]
[1727474788053,2.08382,2693.1,2692.9,0.37125]
[1727474788254,1.7126,2693.1,2692.8,3.9819]
[1727474788655,2.08383,2693.1,2692.9,0.37124]
[1727474789160,2.08384,2693.1,2692.9,0.37124]
[1727474789750,2.08384,2693.1,2693.0,0.37124]
[1727474790154,1.7126,2693.1,2692.8,3.9819]
[1727474790354,1.34,2692.9,2692.8,4.35316]
[1727474791158,1.34,2692.9,2692.8,1.14536]
[1727474791353,2.08385,2692.9,2692.8,0.387]
[1727474791547,2.08385,2692.9,2692.8,0.75826]
[1727474791769,1.7126,2692.9,2692.8,0.37126]
[1727474792253,2.08385,2692.9,2692.8,0.37126]
[1727474792460,1.7126,2692.9,2692.8,0.37126]
[1727474792761,2.08385,2692.9,2692.8,0.37126]
[1727474793158,1.7126,2692.9,2692.6,4.88509666]
[1727474793358,0.37126,2692.8,2692.7,0.37127]
[1727474793551,1.34,2692.8,2692.7,0.37127]
[1727474793751,2.08385,2692.9,2692.8,0.37126]
[1727474793957,2.08385,2692.9,2692.7,0.37127]
[1727474795056,0.37126,2692.8,2692.7,0.37127]
[1727474795759,4.9204,2692.9,2692.8,0.37126]
[1727474796257,4.9204,2692.9,2692.6,0.3774]
[1727474796756,1.7126,2693.1,2692.6,0.3774]
[1727474796961,2.48883,2693.1,2692.9,0.37125]
[1727474797159,2.48883,2693.1,2693.0,0.76254]
[1727474797452,2.48883,2693.1,2693.0,0.3913]
[1727474799552,3.45735862,2693.1,2693.0,0.3913]
[1727474799753,3.08612862,2693.1,2692.5,1.37568535]
[1727474799959,0.37125,2693.0,2692.8,0.37126]
[1727474802167,0.37125,2692.9,2692.8,0.37126]
[1727474802466,1.71125,2692.9,2692.7,0.37127]
[1727474802664,0.3797,2692.8,2692.7,0.37127]
[1727474803363,0.75096,2692.8,2692.7,0.37127]
[1727474803660,0.3797,2692.8,2692.7,0.37128]
[1727474803871,0.75097,2692.8,2692.6,0.76618]
[1727474805259,1.15687,2692.8,2692.6,0.76618]
[1727474805463,1.71128,2692.7,2692.6,0.3949]
[1727474805662,2.09918,2692.7,2692.6,0.3949]
[1727474805864,5.30698,2692.7,2692.6,0.3949]
[1727474810765,5.30698,2692.7,2692.6,0.76619]
[1727474811468,2.09918,2692.7,2692.6,0.3949]
[1727474811971,5.30698,2692.7,2692.6,0.3949]
[1727474812877,5.30698,2692.7,2692.6,0.76619]
[1727474813767,2.09918,2692.7,2692.6,0.76619]
[1727474814672,1.7279,2692.7,2692.6,0.76619]
[1727474815071,2.09918,2692.7,2692.6,0.3949]
[1727474815571,2.09918,2692.7,2692.6,0.76619]
[1727474815772,1.7279,2692.7,2692.6,0.76619]
[1727474815961,1.7279,2692.7,2692.6,0.3949]
[1727474815962,2.09918,2692.7,2692.6,0.3949]
[1727474817177,2.09918,2692.7,2692.6,0.76619]
[1727474818775,3.06770862,2692.7,2692.6,0.76619]
[1727474818979,2.09918,2692.7,2692.6,0.76619]
[1727474819371,2.09918,2692.7,2692.6,0.3949]
[1727474820473,3.06770862,2692.7,2692.6,0.76619]
[1727474821082,2.09918,2692.7,2692.6,0.76619]
[1727474821275,3.06770862,2692.7,2692.6,0.76619]
[1727474821779,3.06770862,2692.7,2692.6,0.3949]
[1727474821988,3.55197293,2692.7,2692.6,0.76619]
[1727474822189,3.06953669,2692.7,2692.6,0.76619]
[1727474822378,2.09918,2692.7,2692.6,0.76619]
[1727474823386,2.31048894,2692.7,2692.6,0.76619]
[1727474825883,2.68176894,2692.7,2692.6,0.76619]
[1727474826182,1.71128,2692.7,2692.6,0.76619]
[1727474826377,2.68193583,2692.7,2692.6,0.76619]
[1727474826886,1.71128,2692.7,2692.6,0.76619]
[1727474827393,2.79279293,2692.7,2692.6,0.76619]
[1727474827589,1.34,2692.7,2692.6,0.76619]
[1727474827786,2.79279293,2692.7,2692.6,0.76619]
[1727474828183,1.34,2692.7,2692.6,0.76619]
[1727474828383,2.79279293,2692.7,2692.6,0.76619]
[1727474828584,2.31076744,2692.7,2692.6,0.76619]
[1727474828895,1.71128,2692.7,2692.6,0.76619]
[1727474829490,2.79279293,2692.7,2692.6,0.76619]
[1727474830497,3.16407293,2692.7,2692.6,0.76619]
[1727474830696,1.45279293,2692.7,2692.6,0.76619]
[1727474830892,3.5875,2692.8,2692.7,0.37128]
[1727474830893,6.38029293,2692.8,2692.7,0.37128]
[1727474831094,6.38029293,2692.8,2692.7,5.01308]
[1727474831095,1.45279293,2692.8,2692.7,5.01308]
[1727474831390,2.99158586,2693.5,2692.7,5.01308]
[1727474831391,0.97109905,2693.4,2693.3,0.37119]
[1727474831595,0.97109905,2693.6,2693.3,2.98933652]
[1727474831795,0.97141654,2693.6,2693.5,1.3442553]
[1727474832099,0.97103623,2693.6,2693.4,0.9730853]
[1727474832295,0.97103623,2693.6,2693.5,0.37115]
[1727474832797,2.31103623,2693.6,2693.4,1.3442553]
[1727474832992,2.68218623,2693.6,2693.4,1.3442553]
[1727474833192,2.68219623,2693.6,2693.4,0.37118]
[1727474833490,2.31103623,2693.6,2693.4,0.37118]
[1727474833697,2.68218623,2693.6,2693.4,0.37118]
[1727474835893,2.31103623,2693.6,2693.4,0.37118]
[1727474836199,1.34,2693.6,2693.4,0.37118]
[1727474836396,1.34,2693.6,2693.5,0.37117]
[1727474836899,1.34,2693.6,2693.4,0.37117]
[1727474837305,1.34,2693.6,2693.5,0.37117]
[1727474839496,1.34,2693.6,2693.4,0.37117]
[1727474839698,0.3749,2693.5,2693.4,0.37117]
[1727474840891,3.5827,2693.5,2693.4,0.37117]
[1727474841497,3.9597,2693.5,2693.4,0.37117]
[1727474842890,0.7519,2693.5,2693.4,0.37117]
[1727474846208,0.7519,2693.5,2693.4,0.74447]
[1727474853403,0.97103623,2694.1,2693.4,12.35403]
[1727474853602,2.10009,2694.1,2693.6,1.34]
[1727474853817,1.34,2694.0,2693.9,0.37111]
[1727474856110,1.7111,2694.0,2693.8,0.75292]
[1727474856418,1.34,2694.0,2693.8,0.3818]
[1727474856714,1.7111,2694.0,2693.8,0.75292]
[1727474858815,1.7111,2694.0,2693.7,0.74193]
[1727474858816,0.37111,2693.9,2693.7,0.74193]
[1727474859111,1.34,2693.8,2693.7,0.74193]
[1727474861414,1.34,2693.8,2693.7,0.37114]
[1727474861618,1.7453,2693.8,2693.7,0.37114]
[1727474861813,2.1301,2693.8,2693.7,0.37114]
[1727474862813,2.50122,2693.8,2693.7,0.37114]
[1727474863012,2.90062,2693.8,2693.7,0.37114]
[1727474863713,2.5295,2693.8,2693.7,0.37114]
[1727474868623,2.90062,2693.8,2693.7,0.37114]
[1727474868818,2.5295,2693.8,2693.7,0.37114]
[1727474873523,3.574,2694.0,2693.9,0.37111]
[1727474874122,3.574,2694.0,2693.9,0.73851]
[1727474874427,4.914,2694.0,2693.9,0.73851]
[1727474874621,5.88503623,2694.0,2693.9,0.73851]
[1727474874926,1.7062,2694.0,2693.9,0.73851]
[1727474875423,3.04833623,2694.0,2693.9,0.73851]
[1727474876126,3.53009293,2694.0,2693.9,0.73851]
[1727474876718,2.0773,2694.0,2693.9,0.73851]
[1727474876925,3.53009293,2694.0,2693.9,0.73851]
[1727474877224,2.0773,2694.0,2693.9,0.73851]
[1727474877816,3.5351008,2694.0,2693.9,0.73851]
[1727474878309,3.53505287,2694.0,2693.9,0.73851]
[1727474879118,2.0773,2694.0,2693.9,0.3674]
[1727474879720,2.0773,2694.0,2693.9,0.73851]
[1727474881128,2.0773,2694.0,2693.9,0.3674]
[1727474881619,0.37112,2693.9,2693.7,1.7448153]
[1727474881825,0.97184694,2693.8,2693.7,2.1422153]
[1727474882622,0.97184694,2693.8,2693.7,3.28652899]
[1727474883020,0.97184694,2693.9,2693.8,0.37112]
[1727474883222,0.97186105,2693.9,2693.8,1.34406462]
[1727474883418,6.74287041,2694.0,2693.9,0.37111]
[1727474883819,6.74287041,2694.0,2693.8,0.37112]
[1727474884020,1.3430022,2693.9,2693.8,1.34406462]
[1727474884228,0.9718922,2693.9,2693.8,1.34406462]
[1727474884527,6.74288041,2694.0,2693.8,0.37112]
[1727474885425,6.74288041,2694.0,2693.8,1.34406462]
[1727474886429,0.97195644,2693.9,2693.8,1.34406462]
[1727474886627,1.82888041,2693.9,2693.8,0.37112]
[1727474887829,1.82888041,2693.9,2693.8,1.34406462]
[1727474888022,1.34311442,2693.9,2693.8,1.34406462]
[1727474889728,1.82888041,2693.9,2693.8,0.37112]
[1727474891619,1.82888041,2693.9,2693.7,2.14207462]
[1727474891819,1.45777041,2693.8,2693.7,2.14207462]
[1727474892631,1.45777041,2693.8,2693.7,0.97294462]
[1727474892928,1.45777041,2693.8,2693.6,1.83086308]
[1727474892929,0.37114,2693.7,2693.6,0.97294462]
[1727474893136,2.57487318,2693.7,2693.6,0.97294462]
[1727474895720,2.57487318,2693.7,2693.6,1.34409462]
[1727474896227,1.51104,2693.7,2693.6,2.48973074]
[1727474897326,1.51104,2693.7,2693.6,2.48985486]
[1727474897727,2.97016195,2693.7,2693.6,2.97663332]
[1727474898327,2.97016195,2693.7,2693.6,2.97678572]
[1727474899134,1.51104,2693.7,2693.6,2.97678572]
[1727474900433,1.51104,2693.7,2693.6,1.51706264]
[1727474900831,1.51104,2693.7,2693.6,1.14591264]
[1727474901232,1.51104,2693.7,2693.6,2.60563572]
[1727474901428,3.44809724,2693.7,2693.6,0.97406405]
[1727474902742,3.44809724,2693.7,2693.6,1.34521405]
[1727474903632,1.51104,2693.7,2693.6,1.34521405]
[1727474903833,3.44809724,2693.7,2693.6,1.34521405]
[1727474904032,1.51104,2693.7,2693.6,1.34521405]
[1727474904244,3.44809724,2693.7,2693.6,1.34521405]
[1727474904445,1.51104,2693.7,2693.6,1.34521405]
[1727474904739,3.44809724,2693.7,2693.6,0.37115]
[1727474905344,3.44809724,2693.7,2693.5,1.34522405]
[1727474905638,3.44809724,2693.7,2693.6,0.37115]
[1727474908751,0.37115,2693.6,2693.5,0.37116]
[1727474909047,4.91895,2693.6,2693.5,0.37116]
[1727474909248,6.85600724,2693.6,2693.5,0.37116]
[1727474909744,6.85600724,2693.6,2693.3,1.37576405]
[1727474910044,6.85600724,2693.6,2693.5,0.37117]
[1727474910846,6.48485724,2693.6,2693.5,0.37117]
[1727474912744,4.5478,2693.6,2693.5,0.37117]
[1727474913552,6.00563729,2693.6,2693.5,0.37117]
[1727474913957,6.00556718,2693.6,2693.5,0.37117]
[1727474914252,4.91895,2693.6,2693.5,0.37117]
[1727474914454,6.37663734,2693.6,2693.5,0.37117]
[1727474914948,6.37663222,2693.6,2693.5,0.37117]
[1727474915447,4.91895,2693.6,2693.5,0.37117]
[1727474915652,6.37654804,2693.6,2693.5,0.37117]
[1727474916147,4.91895,2693.6,2693.5,0.37117]
[1727474916450,6.37653801,2693.6,2693.5,0.37117]
[1727474918752,2.79758801,2693.6,2693.5,0.37117]
[1727474918949,0.97167284,2693.6,2693.5,0.37117]
[1727474920056,0.97164903,2693.6,2693.5,0.37117]
[1727474920246,2.96862801,2693.7,2693.6,0.37115]
[1727474921355,2.96862801,2693.7,2693.5,1.34522405]
[1727474921648,1.45758801,2693.8,2693.7,0.37114]
[1727474921952,5.03650801,2693.9,2693.8,0.37112]
[1727474922152,3.96112,2693.9,2693.8,0.37112]
[1727474922649,5.41883458,2693.9,2693.7,0.37113]
[1727474923062,5.41883458,2693.9,2693.8,0.37112]
[1727474924254,5.41883458,2693.9,2693.7,0.97406405]
[1727474924557,5.41883458,2693.9,2693.7,0.37113]
[1727474924558,1.82883458,2693.8,2693.7,0.37113]
[1727474924743,0.37112,2693.8,2693.7,1.34519405]
[1727474924948,1.82883458,2693.8,2693.7,0.37113]
[1727474925159,0.37112,2693.8,2693.7,1.34519405]
[1727474925357,5.41883458,2693.9,2693.7,1.34519405]
[1727474925551,1.82883458,2693.8,2693.7,0.37113]
[1727474925857,0.37112,2693.8,2693.7,1.34519405]
[1727474926349,0.37112,2693.8,2693.7,0.37113]
[1727474926350,1.82883458,2693.8,2693.7,0.37113]
[1727474926544,1.45771458,2693.8,2693.7,1.34519405]
[1727474926745,1.45771458,2693.8,2693.7,0.37113]
[1727474927458,1.82883458,2693.8,2693.7,0.37113]
[1727474927653,1.82883458,2693.8,2693.7,1.34519405]
[1727474927849,0.37114,2693.7,2693.6,2.10400405]
[1727474928049,1.82902875,2693.7,2693.6,0.75995]
[1727474928250,0.37114,2693.7,2693.6,0.75995]
[1727474928653,0.37114,2693.7,2693.6,0.3888]
[1727474930356,2.30819724,2693.7,2693.6,0.3888]
[1727474932752,5.91805724,2693.8,2693.6,0.75995]
[1727474932953,1.93705724,2693.7,2693.6,0.75995]
[1727474933153,2.30819724,2693.7,2693.6,0.3888]
[1727474933560,1.93705724,2693.7,2693.6,0.75995]
[1727474933757,1.82939309,2693.7,2693.6,0.75995]
[1727474934244,0.37114,2693.7,2693.6,0.75995]
[1727474934446,1.93705724,2693.8,2693.7,0.37114]
[1727474934848,0.75332,2693.9,2693.8,0.37112]
[1727474934849,2.31925724,2693.9,2693.8,0.37112]
[1727474935053,0.3822,2693.9,2693.8,0.37112]
[1727474935261,0.75331,2693.9,2693.8,0.37112]
[1727474935757,0.3822,2693.9,2693.8,0.37112]
[1727474936156,0.75331,2693.9,2693.8,0.37112]
[1727474937160,0.75331,2693.9,2693.7,1.34519405]
[1727474937355,1.82960877,2693.8,2693.7,1.34519405]
[1727474937556,1.82960877,2693.8,2693.7,2.49056336]
[1727474938455,1.82960877,2693.8,2693.7,1.34519405]
[1727474939366,1.8297436,2693.8,2693.7,1.34519405]
[1727474939556,1.4586236,2693.8,2693.7,1.34519405]
[1727474940154,1.8297436,2693.8,2693.7,1.34519405]
[1727474941867,1.4069636,2693.8,2693.7,2.49058093]
[1727474942066,1.4069636,2693.8,2693.7,2.11945093]
[1727474942369,1.4069636,2693.8,2693.7,1.34520405]
[1727474942761,0.37112,2693.8,2693.7,0.97406405]
[1727474942963,0.37114,2693.7,2693.6,0.75994]
[1727474943174,5.5236905,2693.7,2693.6,0.75994]
[1727474943466,1.9447505,2693.7,2693.6,0.75994]
[1727474943667,2.3158905,2693.7,2693.6,0.3888]
[1727474943866,5.5236905,2693.7,2693.6,0.3888]
[1727474944370,5.5236905,2693.7,2693.6,0.75995]
[1727474944759,5.5236905,2693.7,2693.6,0.3888]
[1727474945969,2.3158905,2693.7,2693.6,0.3888]
[1727474946157,2.3158905,2693.7,2693.6,0.75995]
[1727474946363,2.7203505,2693.8,2693.6,1.36286405]
[1727474946561,2.7203505,2693.8,2693.7,0.37114]
[1727474946759,3.0914705,2693.8,2693.7,0.37114]
[1727474947170,3.0914705,2693.8,2693.6,1.73400405]
[1727474947471,2.7203505,2693.8,2693.7,0.37114]
[1727474947670,3.0914705,2693.8,2693.6,1.73400405]
[1727474948966,2.7203505,2693.8,2693.7,0.37114]
[1727474949461,3.0914705,2693.8,2693.6,1.73401405]
[1727474950076,1.14672,2693.8,2693.7,0.97406405]
[1727474951959,0.7756,2693.8,2693.7,1.34520405]
[1727474952161,1.14672,2693.8,2693.7,0.97406405]
[1727474954271,0.7756,2693.8,2693.7,1.34520405]
[1727474954465,1.14672,2693.8,2693.7,0.97406405]
[1727474957477,1.14673,2693.8,2693.6,1.73401405]
[1727474957666,2.7203505,2693.8,2693.7,1.34520405]
[1727474957870,0.7756,2693.8,2693.7,1.34520405]
[1727474958075,0.3698,2693.8,2693.7,1.34520405]
[1727474958670,0.3698,2693.8,2693.7,2.49247424]
[1727474959163,0.3698,2693.8,2693.7,1.34520405]
[1727474959765,0.3698,2693.8,2693.7,2.49259727]
[1727474960168,0.3698,2693.8,2693.7,1.34520405]
[1727474960471,5.5347505,2693.9,2693.8,0.37112]
[1727474960664,5.5347505,2693.9,2693.8,1.344949]
[1727474961466,5.9058605,2693.9,2693.8,1.344949]
[1727474962175,5.5347505,2693.9,2693.8,0.973829]
[1727474962479,5.5347505,2693.9,2693.8,1.344949]
[1727474962668,5.9058605,2693.9,2693.8,0.973829]
[1727474963981,5.5347505,2693.9,2693.8,1.344949]
[1727474964168,5.5347505,2693.9,2693.8,0.973829]
[1727474964169,5.9058605,2693.9,2693.8,0.973829]
[1727474965180,6.38243155,2693.9,2693.7,1.344959]
[1727474965373,1.94582368,2693.8,2693.7,1.344959]
[1727474966374,6.38243155,2693.9,2693.7,1.344959]
[1727474966576,1.94605649,2693.8,2693.7,1.344959]
[1727474966777,6.38243155,2693.9,2693.7,1.344959]
[1727474967583,1.94608216,2693.8,2693.7,1.344959]
[1727474968480,6.38243155,2693.9,2693.7,1.344959]
[1727474968679,1.94607675,2693.8,2693.7,1.344959]
[1727474968880,6.01132155,2693.9,2693.7,1.344959]
[1727474969077,1.94615318,2693.9,2693.8,8.03066549]
[1727474969272,2.79222155,2694.1,2694.0,0.3711]
[1727474969273,1.94615318,2694.1,2694.0,0.3711]
[1727474969477,5.53895367,2694.2,2694.0,2.49242314]
[1727474969676,5.53895367,2694.2,2694.1,0.97384496]
[1727474970677,5.53895367,2694.2,2694.0,1.34494496]
[1727474971079,2.33115367,2694.2,2694.0,1.34494496]
[1727474971575,2.33115367,2694.2,2694.0,0.97384496]
[1727474971776,2.33115367,2694.2,2694.0,1.34493496]
[1727474972175,0.3849,2694.2,2694.0,1.34493496]
[1727474972980,2.33115367,2694.2,2694.0,1.34493496]
[1727474973278,1.34336994,2694.1,2694.0,0.97384496]
[1727474973490,0.37108,2694.1,2694.0,0.97384496]
[1727474973692,0.37108,2694.1,2693.9,1.76374496]
[1727474973884,0.97218966,2694.0,2693.9,0.7899]
[1727474974088,1.34329966,2694.0,2693.9,1.14668153]
[1727474974383,0.97218966,2694.0,2693.9,2.11986037]
[1727474974583,1.34328966,2694.0,2693.9,2.11980509]
[1727474974785,0.37111,2693.9,2693.8,0.97312356]
[1727474974989,5.68953854,2693.9,2693.8,2.11982657]
[1727474975175,4.71741,2693.9,2693.7,0.97312356]
[1727474975384,1.34322026,2693.8,2693.6,1.46076745]
[1727474975686,1.34322026,2693.8,2693.7,2.11997742]
[1727474975891,1.34322026,2693.8,2693.7,0.97322563]
[1727474976091,0.97210026,2693.8,2693.7,0.97322563]
[1727474976396,0.97210026,2693.8,2693.7,2.11997119]
[1727474976684,0.97210026,2693.8,2693.7,2.49111119]
[1727474976879,0.97210026,2693.8,2693.7,2.11997119]
[1727474977079,1.34322026,2693.8,2693.7,2.11997119]
[1727474977285,1.34322026,2693.8,2693.7,0.97322563]
[1727474977486,1.34322026,2693.8,2693.7,2.12003539]
[1727474977893,0.97210026,2693.8,2693.7,2.12003539]
[1727474978089,1.94625367,2694.1,2693.7,13.65957721]
[1727474978291,7.73016536,2695.0,2694.0,2.80076745]
[1727474978292,0.97250934,2694.6,2694.0,2.80076745]
[1727474978489,1.35810934,2694.8,2694.6,0.37101]
[1727474978697,0.3856,2694.9,2694.7,6.94470976]
[1727474978893,0.97250934,2695.0,2694.8,2.60504197]
[1727474979198,0.3856,2695.2,2694.7,2.0919]
[1727474979199,0.97250934,2695.1,2694.9,3.94781748]
[1727474979379,1.35810934,2695.2,2694.9,2.31213935]
[1727474979582,1.35810934,2695.2,2695.0,0.97213935]
[1727474980193,0.97250934,2695.1,2694.9,2.31213935]
[1727474980393,1.35810934,2695.2,2694.9,1.34]
[1727474981388,0.3856,2695.2,2694.9,1.34]
[1727474983890,0.3856,2695.2,2694.8,1.34]
[1727474984087,1.7256,2695.2,2694.8,1.34]
[1727474986295,1.7256,2695.2,2694.8,1.71098]
[1727474987497,1.7256,2695.2,2694.8,1.34]
[1727474988394,0.3856,2695.2,2694.8,1.71099]
[1727474992297,0.3856,2695.2,2694.8,1.34]
[1727474992502,0.3856,2695.2,2694.8,1.71098]
[1727474993605,0.3856,2695.2,2694.9,0.37097]
[1727474994699,0.3856,2695.2,2694.8,1.71098]
[1727474996398,0.3856,2695.2,2694.9,0.37097]
[1727475001801,0.3856,2695.2,2694.8,1.34]
[1727475002105,0.3856,2695.2,2694.9,0.37097]
[1727475002301,0.3856,2695.2,2694.8,1.34]
[1727475002507,0.3856,2695.2,2694.9,0.37096]
[1727475002806,0.3856,2695.2,2694.9,1.71096]
[1727475003203,0.3856,2695.2,2695.1,0.37095]
[1727475003398,0.3856,2695.2,2695.1,1.71095]
[1727475003598,0.3856,2695.4,2695.2,0.37093]
[1727475003903,0.3856,2695.4,2695.3,1.7389]
[1727475007396,0.7841,2695.5,2695.3,1.7389]
[1727475007601,0.7841,2695.5,2695.4,1.34]
[1727475007602,0.3996,2695.5,2695.4,1.34]
[1727475014502,0.3996,2695.5,2695.3,0.3989]
[1727475014701,3.2078,2695.4,2694.9,0.3779]
[1727475014906,0.76942,2695.3,2694.9,2.45766]
[1727475015109,0.3907,2695.2,2694.9,2.45766]
[1727475015498,0.3794,2695.1,2694.9,2.45766]
[1727475018007,0.3794,2695.1,2695.0,0.37096]
[1727475020305,0.3794,2695.1,2695.0,1.71096]
[1727475023507,1.35190934,2695.1,2695.0,2.90115912]
[1727475023916,1.35190934,2695.1,2695.0,4.35939133]
[1727475025109,0.97250934,2695.1,2695.0,4.35939133]
[1727475025315,0.97250934,2695.1,2695.0,7.19726312]
[1727475025316,0.97277846,2695.1,2695.0,7.19726312]
[1727475025512,0.97277846,2695.3,2695.2,0.37093]
[1727475025713,0.97277846,2695.5,2695.4,0.3709]
[1727475025914,0.97279945,2695.5,2695.4,4.36022699]
[1727475027420,0.97279945,2695.5,2695.4,1.7109]
[1727475027611,0.97279945,2695.5,2695.4,2.90092378]
[1727475028311,0.97279945,2695.5,2695.4,3.87345779]
[1727475028817,0.97279945,2695.5,2695.4,2.90092378]
[1727475029007,0.97279945,2695.5,2695.4,3.87343892]
[1727475029207,0.97279945,2695.5,2695.4,4.36005165]
[1727475029411,0.97279945,2695.5,2695.4,2.90092378]
[1727475029812,0.97279945,2695.5,2695.4,3.87335299]
[1727475030115,0.97279945,2695.6,2695.5,0.37089]
[1727475030314,0.97211704,2695.7,2695.6,0.37088]
[1727475030519,4.65808773,2695.8,2695.7,0.37086]